Cogmind - Beta 14 @@@ ROGUE MODE // 2024.12.04 @ 09:40:48 Player: Cherman0 Result: Destroyed by B-75 Beast with Heavy Plasma Cannon Performance ------------- Evolutions (2) 1000 Regions Visited (6) 1200 Robots Destroyed (145) 725 Value Destroyed (3890) 3890 Prototype IDs (9) 180 Alien Tech Used (0) 0 Bonus (828) 828 TOTAL SCORE: 7823 Bonus ------- High Alert Combat Kills 168 Follower Combat Kills 60 Entered Garrisons 200 Used RIF Installer 500 Friendly Fire -100 Cogmind --------- Core Integrity 0/550 Matter 83/300 Energy 100/100 System Corruption 0% Temperature Cool (12) Movement Core (1350) Ox26 Location -8/Garrison Parts ------- > --- POWER (1) -------- (None) > --- PROPULSION (4) --- (None) > --- UTILITY (4) ------ Huge Storage Unit Hacking Suite > --- WEAPON (2) ------- (None) > --- INVENTORY (25) --- Light Treads Advanced Treads Advanced Treads Advanced Treads Advanced Treads Advanced Treads Transport Network Coupler Improved Focal Shield Hacking Suite Advanced System Shield Drone Bay (2/2) Heavy Particle Gun Heavy Particle Gun Advanced Beam Cannon Advanced Plasma Cannon Autogun KE Penetrator Mass Driver Mini Grenade Launcher Datajack Peak State ------------ > --- POWER ------------ Cooled Ion Engine > --- PROPULSION ------- Light Treads Light Treads Light Treads Improved Treads > --- UTILITY ---------- Huge Storage Unit Seismic Detector Improved Powered Armor Hacking Suite > --- WEAPON ----------- Advanced Plasma Cannon Autogun > --- INVENTORY -------- Cooled Ion Engine Light Treads Light Treads Improved Treads Improved Treads Advanced Treads Advanced Treads Advanced Treads Advanced Treads Advanced Treads Cooling System Transport Network Coupler Improved Focal Shield Hacking Suite Advanced System Shield Drone Bay Improved EM Shotgun Improved EM Shotgun Heavy Particle Gun Heavy Particle Gun Advanced Beam Cannon KE Penetrator Mass Driver Mini Grenade Launcher Datajack [Rating: 34] Favorites ----------- Power Ion Engine Engine Ion Engine Power Core Nuclear Core Propulsion Light Treads Treads Light Treads Leg Aluminum Leg Utility Seismic Detector Device Seismic Detector Storage Huge Storage Unit Hackware Hacking Suite Protection Light Armor Plating Weapon Improved Medium Laser Energy Gun Improved Medium Laser Energy Cannon Advanced Beam Cannon Ballistic Gun Improved Assault Rifle Launcher Grenade Launcher Special Weapon Mining Laser Special Melee Weapon Datajack Build | -11 -10 -10 -9 -9 -8 -8 ------- Run | Yrd Mat Min Mat Sto Mat Gar Slots Evolved 4 | . . . 2 . 2 . Power . | . . . . . . . Propulsion 2 | . . . 1 . 1 . Utility 2 | . . . 1 . 1 . Weapon . | . . . . . . . Parts Attached 147 | 5 16 4 44 43 14 21 Power 9 | . . . 2 6 . 1 Engine 8 | . . . 1 6 . 1 Core 1 | . . . 1 . . . Reactor . | . . . . . . . Propulsion 40 | 2 1 . 13 10 9 5 Treads 40 | 2 1 . 13 10 9 5 Leg . | . . . . . . . Wheel . | . . . . . . . Hover . | . . . . . . . Flight . | . . . . . . . Utility 30 | 2 1 1 14 5 2 5 Device 17 | 2 . 1 9 1 2 2 Storage 2 | . 1 . 1 . . . Processor . | . . . . . . . Hackware 1 | . . . . . . 1 Protection 10 | . . . 4 4 . 2 Artifact . | . . . . . . . Weapon 68 | 1 14 3 15 22 3 10 Energy Gun 18 | 1 3 2 10 . . 2 Energy Cannon 3 | . . . . . . 3 Ballistic Gun 22 | . 6 . 1 10 2 3 Ballistic Cannon . | . . . . . . . Launcher 7 | . . 1 1 3 . 2 Special Weapon 12 | . 4 . 2 6 . . Impact Weapon . | . . . . . . . Slashing Weapon . | . . . . . . . Piercing Weapon . | . . . . . . . Special Melee Weapon 6 | . 1 . 1 3 1 . Unidentified Prototypes 4 | . 1 . 1 2 . . Parts Lost 25 | . 1 1 5 . 4 14 Power 3 | . . . 1 . . 2 Propulsion 9 | . . . 3 . . 6 Utility 7 | . . . 1 . 2 4 Weapon 6 | . 1 1 . . 2 2 Highest Loss Streak 13 | . 1 1 1 . 2 13 To Critical Strikes 2 | . . . 2 . . . Average Slot Usage (%) 98 | . 100 100 97 99 92 92 Engine 9 | . 14 14 3 9 9 9 Core 2 | . . . 7 1 . . Treads 31 | . 28 28 32 33 36 34 Device 12 | . 14 14 11 11 17 11 Storage 12 | . 14 14 11 11 9 9 Protection 5 | . . . 9 11 3 1 Energy Gun 13 | . 15 28 21 . . . Ballistic Gun 8 | . 10 . . 19 17 11 Special Weapon 1 | . 1 . . 1 . . Peak Build Rating 34 | 7 13 13 24 24 27 34 Average Rating 16 | 6 10 12 20 19 24 25 On Entrance 15 | 6 7 13 13 24 20 22 Naked Turns . | . . . . . . . Heaviest Build 113 | 15 52 52 100 100 100 113 Greatest Support 92 | 40 40 40 60 60 92 83 Greatest Overweight (x) 29 | . 1 1 1 1 1 29 Average Overweight (x) . | . . 1 . 1 1 1 Largest Inventory Capacity 25 | 8 20 20 25 25 25 25 Average Capacity 22 | 8 19 20 24 25 25 25 Most Carried 25 | 8 20 20 25 25 25 25 Average Carried 21 | 6 16 19 23 24 24 24 Final Capacity 25 | 8 20 20 25 25 25 25 Final Carried 25 | 8 18 19 25 25 25 20 Class Distribution -------------------- 61% | Mutant 38% | Scavenger-Mutant Dominant Class ---------------- Mutant | -10/Materials Mutant | -10/Mines Scavenger-Mutant | -9/Materials Scavenger-Mutant | -9/Storage Mutant | -8/Materials Scavenger-Mutant | -8/Garrison Resources | -11 -10 -10 -9 -9 -8 -8 ----------- Run | Yrd Mat Min Mat Sto Mat Gar Matter Collected 2859 | 289 326 56 482 1126 443 137 Remotely . | . . . . . . . Salvage Created 4964 | 157 716 167 1429 1851 372 272 Parts 297 | 10 41 17 86 101 23 19 Haulers Intercepted 14 | . 2 . 6 6 . . Recyclers Shooed 5 | . . 1 1 3 . . Parts Field Recycled . | . . . . . . . Retrieved Matter . | . . . . . . . Parts Self-Destructed . | . . . . . . . Prevented . | . . . . . . . Kills | -11 -10 -10 -9 -9 -8 -8 ------- Run | Yrd Mat Min Mat Sto Mat Gar Combat Hostiles Destroyed 103 | . 14 8 26 35 10 10 Guns 85 | . 14 7 24 24 10 6 AOE 18 | . . 1 2 11 . 4 Classes Destroyed 14 | 2 6 . 3 3 . . Worker 1 | . . . . 1 . . Builder 3 | . 1 1 . 1 . . Tunneler 7 | 5 . 1 . 1 . . Hauler 14 | . 2 . 6 6 . . Recycler 2 | 1 . . . 1 . . Mechanic 1 | . . . . 1 . . Operator 4 | . 1 . 2 1 . . Watcher 10 | . 3 . 5 2 . . Swarmer 25 | . 3 6 6 3 4 3 Grunt 48 | . 11 2 10 17 3 5 Brawler 3 | . . . 1 2 . . Duelist 4 | . . . 1 1 . 2 Protector 1 | . . . . 1 . . Sentry 22 | . . . 8 11 3 . Best Kill Streak 8 | 4 3 3 5 7 5 8 Combat Bots Only 8 | . 3 3 3 7 5 8 Max Kills in Single Turn 4 | 1 1 2 2 4 1 2 Gunslinging 1 | . . 1 . 1 . . Exploded 4 | . . 1 2 4 . 2 Melee . | . . . . . . . Uniques/NPCs Destroyed . | . . . . . . . Combat | -11 -10 -10 -9 -9 -8 -8 -------- Run | Yrd Mat Min Mat Sto Mat Gar Hostile Shots Fired 583 | . 60 44 133 132 83 131 Missed 152 | . 16 8 37 42 21 28 Damage Taken 6415 | . 516 354 1293 1215 877 2160 Core 962 | . 136 113 82 68 80 483 Absorbed by Shields 58 | . . . . 58 . . Regen/Repaired (Parts) 30 | . . . . 30 . . Core Remaining (%) 54 | 100 . . . 62 . . Volleys Fired 400 | 13 67 19 101 109 49 42 Largest 2 | 2 2 2 2 2 2 2 Hottest 112 | 70 112 112 112 110 46 98 Shots Fired 747 | 25 120 38 199 205 98 62 Gun 697 | 25 111 37 194 191 98 41 Cannon 16 | . . . . . . 16 Launcher 15 | . . 1 1 8 . 5 Special 19 | . 9 . 4 6 . . Kinetic 384 | 13 55 . . 188 98 30 Thermal 337 | 12 65 37 198 9 . 16 Explosive 15 | . . 1 1 8 . 5 Electromagnetic 11 | . . . . . . 11 Robot Hit Streak 21 | 8 10 7 14 21 13 12 Robot Miss Streak 4 | 2 4 3 3 4 3 4 Penetration Max . | . . . . . . . Secondary Targets 15 | . 2 2 4 4 1 2 Max Gunslinging Chain 1 | . 1 1 1 1 1 1 Shots Hit Robots 485 | 18 64 23 127 145 73 35 Core Hits 230 | 8 29 12 47 89 20 25 Critical Kills 1 | . . . . 1 . . Critical Parts Destroyed 1 | . . . . . 1 . Critical Strikes 15 | 1 5 1 6 1 1 . Burn 13 | 1 5 1 6 . . . Destroy 2 | . . . . 1 1 . Melee Attacks . | . . . . . . . Impact . | . . . . . . . Slashing . | . . . . . . . Piercing . | . . . . . . . Sneak Attacks . | . . . . . . . Combat Hostiles . | . . . . . . . Follow-up Attacks . | . . . . . . . Damage Inflicted 9931 | 237 1034 526 2609 3270 1139 1116 Guns 7932 | 233 1013 389 2471 2191 1139 496 Cannons . | . . . . . . . Explosions 1882 | . . 116 92 1054 . 620 Melee . | . . . . . . . Ramming 117 | 4 21 21 46 25 . . Kinetic 4148 | 120 379 . . 2191 1139 319 Thermal 3744 | 113 634 389 2471 . . 137 Explosive 1745 | . . 116 92 1054 . 483 Electromagnetic 177 | . . . . . . 177 Impact . | . . . . . . . Slashing . | . . . . . . . Piercing . | . . . . . . . Highest Corruption 4 | . 1 1 4 4 . . Average Corruption 2 | . 1 1 4 4 . . Corruption Purged . | . . . . . . . Corruption Blocked . | . . . . . . . Effects 99 | . 13 12 13 61 . . Message Errors 25 | . 1 3 3 18 . . Matter Fused 19 | . 2 1 7 9 . . Heat Flow Errors 10 | . 2 2 . 6 . . Energy Discharges 14 | . 5 2 . 7 . . Data Loss (minor) 14 | . 3 2 1 8 . . Data Loss (major) 1 | . . . . 1 . . Misfires 7 | . . 1 2 4 . . Alerts 7 | . . 1 . 6 . . Weapon Failures 2 | . . . . 2 . . Overload Shots . | . . . . . . . Overflow Damage 8 | . . 8 . . . . Projectiles . | . . . . . . . Explosions 8 | . . 8 . . . . Melee . | . . . . . . . Knockbacks 1 | . . . . 1 . . Impact 1 | . . . . 1 . . Kinetic . | . . . . . . . Secondary . | . . . . . . . Self-Inflicted Damage 3 | . . . . 3 . . Shots 2 | . . . . 2 . . Rammed 23 | 2 4 4 9 4 . . Targets Rammed 25 | 2 4 5 9 5 . . Kicked . | . . . . . . . Crushed 2 | . . 1 . 1 . . Highest Temperature 461 | 90 322 307 324 249 . 461 Average Temperature 74 | 41 63 127 77 41 . 155 Received Heat Transfer 2751 | . 261 99 513 494 387 997 Effects 5 | . 1 . 3 . . 1 Shutdowns 1 | . . . . . . 1 Energy Bleed 1 | . 1 . . . . . Interference 3 | . . . 3 . . . Siege Activations . | . . . . . . . Robots Corrupted . | . . . . . . . Combat Hostiles . | . . . . . . . Parts Fried 1 | . . . . . . 1 Impact Corruptions . | . . . . . . . Robots Melted . | . . . . . . . Combat Hostiles . | . . . . . . . Parts Melted 21 | 1 4 . 16 . . . Heat Transferred 8338 | 407 1739 925 5143 . . 124 Parts Sabotaged . | . . . . . . . Parts Stolen . | . . . . . . . Parts Stripped . | . . . . . . . Power Chain Reactions 1 | . . . . . . 1 Alert | -11 -10 -10 -9 -9 -8 -8 ------- Run | Yrd Mat Min Mat Sto Mat Gar Peak Influence 571 | 30 132 122 266 571 281 424 Initial 185 | . 19 39 15 50 176 185 Average 150 | 17 31 52 100 378 170 326 Maximum Alert Level 2 | . . . 1 2 1 2 Low Security (%) 69 | 100 100 100 91 . 67 7 Level 1 20 | . . . 8 53 32 90 Level 2 10 | . . . . 45 . 2 Level 3 . | . . . . . . . Level 4 . | . . . . . . . Level 5 . | . . . . . . . High Security . | . . . . . . . Max Security . | . . . . . . . Squads Dispatched 15 | . 4 . 3 5 3 . Investigation 4 | . 3 . . 1 . . Extermination . | . . . . . . . Reinforcement 5 | . 1 . 3 1 . . Assault 3 | . . . . 3 . . Garrison 3 | . . . . . 3 . Intercept . | . . . . . . . Searches Triggered . | . . . . . . . Construction Impeded . | . . . . . . . Haulers Reinforced . | . . . . . . . Active Scanning Responses . | . . . . . . . Cargo Convoy Interrupts . | . . . . . . . Stealth | -11 -10 -10 -9 -9 -8 -8 --------- Run | Yrd Mat Min Mat Sto Mat Gar Distress Signals 2 | . . . 1 . 1 . Communications Jammed . | . . . . . . . Distress Signals . | . . . . . . . Times Spotted 137 | . 19 8 40 45 13 12 Peak Tracking Total 9 | . 2 3 4 9 5 5 Tactical Retreats 5 | . . . 3 . 1 1 Traps | -11 -10 -10 -9 -9 -8 -8 ------- Run | Yrd Mat Min Mat Sto Mat Gar Traps Triggered 9 | . 2 . 1 5 . 1 Indirectly . | . . . . . . . Trap Hack Attempts 135 | . 8 . 46 81 . . Triggered . | . . . . . . . Disarmed 4 | . 2 . 1 1 . . Reprogrammed 9 | . . . 4 5 . . Reused . | . . . . . . . Traps Extracted . | . . . . . . . Installed . | . . . . . . . Triggered . | . . . . . . . Machines | -11 -10 -10 -9 -9 -8 -8 ---------- Run | Yrd Mat Min Mat Sto Mat Gar Machines Disabled 8 | . 1 1 . 5 . 1 Max in Single Turn 1 | . 1 1 . 1 . 1 Garrison Access 1 | . . . . 1 . . Machines Repaired . | . . . . . . . Machines Dismantled 1 | . . . . 1 . . Machines Sabotaged . | . . . . . . . Overloaded Fab Kills . | . . . . . . . Hacking | -11 -10 -10 -9 -9 -8 -8 --------- Run | Yrd Mat Min Mat Sto Mat Gar Machines Accessed 37 | . 10 1 11 12 2 1 Terminals 28 | . 7 1 9 9 1 1 Fabricators . | . . . . . . . Repair Stations 3 | . 1 . . 2 . . Recycling Units 3 | . 2 . 1 . . . Scanalyzers 1 | . . . 1 . . . Garrison Access 2 | . . . . 1 1 . Total Hacks 110 | . 24 2 42 36 4 2 Successful 67 | . 16 1 28 19 2 1 Failed 43 | . 8 1 14 17 2 1 Catastrophic 4 | . 1 . . 3 . . Database Lockouts . | . . . . . . . Manual 58 | . 20 2 16 19 . 1 Terminals 84 | . 20 2 29 29 2 2 Fabricators . | . . . . . . . Repair Stations 6 | . 2 . . 4 . . Recycling Units 3 | . 2 . 1 . . . Scanalyzers 12 | . . . 12 . . . Garrison Access 5 | . . . . 3 2 . Terminal Hacks 22 | . 4 1 6 9 1 1 Robot Schematic 1 | . 1 . . . . . Robot Analysis 2 | . . 1 . 1 . . Prototype ID Bank 4 | . 2 . 1 1 . . Open Door 2 | . . . . 2 . . Terminal Index 3 | . 1 . 1 1 . . Alert Level 2 | . . . 1 1 . . Unreport Threat 5 | . . . 2 2 1 . Locate Traps 1 | . . . 1 . . . Zone Layout 1 | . . . . 1 . . Garrison Registry 1 | . . . . . . 1 Fabricator Hacks . | . . . . . . . Repair Station Hacks 4 | . 1 . . 3 . . Scan Component 3 | . 1 . . 2 . . Repair 1 | . . . . 1 . . Recycling Unit Hacks 1 | . . . 1 . . . Retrieve Components 1 | . . . 1 . . . Scanalyzer 12 | . . . 12 . . . Insert Component 6 | . . . 6 . . . Analyze 6 | . . . 6 . . . Garrison Access Hacks 1 | . . . . . 1 . Unlock Access 1 | . . . . . 1 . Unauthorized Hacks 27 | . 11 . 9 7 . . Terminals 25 | . 9 . 9 7 . . Assimilate 2 | . 2 . . . . . Botnet 4 | . 1 . 1 2 . . Operators 3 | . 1 . 1 1 . . Skim 16 | . 5 . 7 4 . . Fabricators . | . . . . . . . Repair Stations . | . . . . . . . Recycling Units 2 | . 2 . . . . . Tunnel 2 | . 2 . . . . . Scanalyzers . | . . . . . . . Garrison Access . | . . . . . . . Data Cores Recovered 1 | . . . . 1 . . Used . | . . . . . . . Hacking Detections 32 | . 8 1 10 10 2 1 Full Trace Events 1 | . . . . 1 . . Feedback Events . | . . . . . . . Feedback Blocked . | . . . . . . . Robot Schematics Acquired 1 | . 1 . . . . . Robots Built . | . . . . . . . Authchips . | . . . . . . . Time . | . . . . . . . Total Robot Build Rating . | . . . . . . . Part Schematics Acquired 5 | . . . 5 . . . Parts Built . | . . . . . . . Authchips . | . . . . . . . Time . | . . . . . . . Total Part Build Rating . | . . . . . . . Parts Repaired 1 | . . . . 1 . . Time 51 | . . . . 51 . . Parts Recycled . | . . . . . . . Recycled Matter . | . . . . . . . Retrieved Matter . | . . . . . . . Retrieved Components 10 | . . . 10 . . . Parts Scanalyzed 6 | . . . 6 . . . Part Schematics Acquired 5 | . . . 5 . . . Parts Damaged . | . . . . . . . Bothacking | -11 -10 -10 -9 -9 -8 -8 ------------ Run | Yrd Mat Min Mat Sto Mat Gar Used RIF Installer 1 | . . . . . . 1 Robots Hacked . | . . . . . . . Non-combat . | . . . . . . . Combat . | . . . . . . . Robot Hacks Applied . | . . . . . . . Relay Couplers Released . | . . . . . . . Fabnet Peak Effective % . | . . . . . . . Robots Rewired . | . . . . . . . Allies Hacked . | . . . . . . . Hacks Repelled . | . . . . . . . Allies | -11 -10 -10 -9 -9 -8 -8 -------- Run | Yrd Mat Min Mat Sto Mat Gar Total Allies 3 | . 1 . . 2 . . Largest Group 2 | . 1 . . 2 1 . Highest-Rated Group 62 | . 10 . . 62 20 . Highest-Rated Ally 31 | . 10 . . 31 20 . Total Orders 2 | . 2 . . . . . STAY 1 | . 1 . . . . . FOLLOW 1 | . 1 . . . . . Ally Attacks 12 | . . . . 10 2 . Total Damage 170 | . . . . 149 21 . Kills 3 | . . . . 2 1 . Allies Corrupted . | . . . . . . . Allies Melted . | . . . . . . . Intel | -11 -10 -10 -9 -9 -8 -8 ------- Run | Yrd Mat Min Mat Sto Mat Gar Robot Analysis Total 2 | . . 1 . 1 . . Derelict Logs Recovered 2 | . . 2 . . . . Drone Launches . | . . . . . . . Drone Recoveries . | . . . . . . . Exploration | -11 -10 -10 -9 -9 -8 -8 ------------- Run | Yrd Mat Min Mat Sto Mat Gar Turns Passed 12636 | 109 3840 1465 3267 2840 381 734 Spaces Moved 4206 | 24 1287 528 1169 887 84 227 Core 1 | . . . . . . 1 Treads 4205 | 24 1287 528 1169 887 84 226 Legs . | . . . . . . . Wheels . | . . . . . . . Hover . | . . . . . . . Flight . | . . . . . . . Fastest Speed 160 | 160 160 240 160 240 240 240 Average Speed 234 | 160 237 240 223 240 240 247 Slowest Speed 1500 | 160 240 240 240 240 240 1500 Overloaded Moves . | . . . . . . . Propulsion Burnouts . | . . . . . . . Robots Hopped . | . . . . . . . Cave-ins Triggered . | . . . . . . . Exploration Rate (%) 59 | 2 98 97 79 91 10 41 Regions Visited 6 Branch Regions 2 Pre-discovered Areas 4 | . 3 1 . . . . Known Exits Taken 4 | . . 1 1 1 1 . Unknown Exits Taken 2 | 1 1 . . . . . Scrap Searched 1 | . . 1 . . . . Spaces Dug 28 | . 8 . 10 10 . . Terrain Destroyed 66 | . 8 8 10 38 . 2 Melee . | . . . . . . . Projectile 14 | . 8 . 4 2 . . AOE 52 | . . 8 6 36 . 2 Terrain Rammed . | . . . . . . . Walls Destroyed . | . . . . . . . Machines Disabled . | . . . . . . . Actions | -11 -10 -10 -9 -9 -8 -8 --------- Run | Yrd Mat Min Mat Sto Mat Gar Total 6185 | 68 1925 682 1617 1377 178 338 Wait 1112 | 22 520 124 192 200 15 39 Move 4202 | 24 1286 527 1168 886 84 227 Hop . | . . . . . . . Pick Up 72 | 2 16 2 28 12 7 5 Fast Attach 18 | 1 1 . 6 5 4 1 Attach 21 | . 1 1 6 2 5 6 Detach 4 | . . . 1 . 3 . Swap 108 | 4 14 3 32 36 5 14 Drop 77 | 1 8 1 28 29 6 4 Fire 400 | 13 67 19 101 109 49 42 Melee . | . . . . . . . Ram . | . . . . . . . Kick . | . . . . . . . Crush 24 | 1 4 5 9 5 . . Escape Stasis 4 | . . . . 4 . . Rewire . | . . . . . . . Trap 135 | . 8 . 46 81 . . Miscellaneous 8 | . . . . 8 . . Route ------- -11/Scrapyard -10/Materials (discovered 5 exits: *Mat x3 / *Min / Sub) -10/Mines (discovered 2 exits: *Mat x2) -9/Materials (discovered 5 exits: *Mat x3 / [*Min] / *Sto) -9/Storage (discovered 2 exits: *Mat / Rec) -8/Materials -8/Garrison (discovered 3 exits: Mat x3) History --------- Turn | Location | Event 12 | -11/Scrapyard | Discovered new exit (range 3) 110 | -11/Scrapyard | Entered Materials 302 | -10/Materials | Build established: Mutant 653 | -10/Materials | Discovered new exit (range 15) 777 | -10/Materials | Discovered new exit (range 10) 1543 | -10/Materials | Discovered new exit (range 8) 2575 | -10/Materials | Discovered new exit (range 9) 3213 | -10/Materials | Learned Storage stockpile data 3269 | -10/Materials | Identified exit to Subcaves 3350 | -10/Materials | Learned location of Recycling (-9) 3464 | -10/Materials | Loaded intel: 8 terminal locations 3508 | -10/Materials | Learned 2 Storage zone layouts 3656 | -10/Materials | Core integrity fell below 50% 3950 | -10/Materials | Entered Mines 3950 | -10/Mines | Accompanied by 1 ally 3951 | -10/Mines | Identified exit to Materials 4011 | -10/Mines | Assembled infested the area 4016 | -10/Mines | Assisted by a Guerilla fighting off Assembled 4368 | -10/Mines | Learned Materials stockpile data 4480 | -10/Mines | Found a hidden stash of uninstalled traps 4565 | -10/Mines | Learned location of Storage (-9) 5251 | -10/Mines | Core integrity fell below 20% 5415 | -10/Mines | Entered Materials 5415 | -9/Materials | Evolved 2 slots: Propulsion x1, Utility x1 5416 | -9/Materials | Identified exit to Materials 5416 | -9/Materials | Identified exit to Storage 5661 | -9/Materials | Discovered exit to Materials (range 3) 6297 | -9/Materials | Build established: Scavenger-Mutant 6827 | -9/Materials | Discovered exit to Materials (range 8) 7085 | -9/Materials | Discovered new exit (range 14) 8277 | -9/Materials | Learned 2 Storage zone layouts 8277 | -9/Materials | Build established: Mutant 8319 | -9/Materials | Loaded intel: 2 recycling unit locations 8383 | -9/Materials | Learned Storage emergency access door positions 8429 | -9/Materials | Learned Storage security intel 8682 | -9/Materials | Entered Storage 8683 | -9/Storage | Identified exit to Recycling 9833 | -9/Storage | Build established: Scavenger-Mutant 10280 | -9/Storage | Repaired Hvy. Ion Engine 11191 | -9/Storage | Met a pair of Derelict thieves 11264 | -9/Storage | Destroyed 7 combat bots 11522 | -9/Storage | Entered Materials 11522 | -8/Materials | Accompanied by 1 ally 11522 | -8/Materials | Evolved 2 slots: Propulsion x1, Utility x1 11636 | -8/Materials | Garrison activated, responded to threat 11903 | -8/Materials | Identified exit to Garrison 11903 | -8/Materials | Entered Garrison 11904 | -8/Garrison | Identified exit to Materials 11960 | -8/Garrison | Discovered exit to Materials (range 58) 11960 | -8/Garrison | Discovered exit to Materials (range 49) 11960 | -8/Garrison | Discovered exit to Materials (range 85) 12151 | -8/Garrison | Triggered checkpoint 12182 | -8/Garrison | Destroyed 8 combat bots 12248 | -8/Garrison | Installed Relay Interface Framework 12428 | -8/Garrison | Found Imp. Powered Armor 12577 | -8/Garrison | Spotted B-75 Beast 12605 | -8/Garrison | Core integrity fell below 50% 12632 | -8/Garrison | Core integrity fell below 20% 12637 | -8/Garrison | Destroyed by B-75 Beast with Heavy Plasma Cannon Last Messages --------------- 12590_ Lgt. Treads destroyed. 12592_ Imp. Heat Sink fried. 12592_ G-47 Trooper destroyed. 12593_ Imp. Treads blasted off. 12595_ Imp. EM Shotgun destroyed. 12596_ Cld. Ion Engine destroyed. 12601_ Imp. Treads destroyed. 12601_ Critical hit (Meltdown: +310). 12603_ Power failure, Cld. Ion Engine shutdown. 12607_ Lgt. Treads destroyed. 12610_ Acquired 2 matter. 12613_ G-50 Soldier IFF system glitched. 12613_ Lgt. Treads destroyed. 12613_ Imp. Powered Armor destroyed. 12615_ Lgt. Treads destroyed. 12623_ Imp. Treads destroyed. 12623_ Imp. EM Shotgun destroyed. 12633_ Cld. Ion Engine destroyed. 12633_ Critical hit (Burn: +37). 12637_ G-50 Soldier misfires. Map ----- +----------------------------------------------------+ | #"#???????????????#" #?????????????????????????? | | #"#####???????????#" #?????????????????????????? | | """""#???????????#" #?????????????????????????? | | " "#???#######?#"# ##????????????????????????? | | "#???# #T# #?### T#????????????????????????? | | " "#???# " " #???# ##????????????????????????? | | """ ""#???### ###???# #?????????????????????????? | | " #?????# #???### #?????????????????????????? | | #?????# ##### " #?????????????????????????? | | #?????# + " #?????????????????????????? | | #?????# ##### " #??????????????????#####??? | | # #####?????# #???### #??????????????????# #??? | | # #???????###+####### #################### < #??? | | #+##??????# #??? | | #??????# #??? | | #??????# #??? | | # #??????#^^^#######++################### ####??? | | # #??????# #?????# #????????????????## #?????? | | # #??????# #?????# #??############??#" #?????? | | # #??????# ####### #??#""" "" """#??#T #?????? | | # #??????# " ####"!!!![ """#??#""#?????? | | # ######## ####### ## = "#??####?????? | | # ## / ## #?????# ## //"[=!["#???????????? | | # ## = ## #?????# ## +%*%% "#???????????? | | = ####### ##% ; =[ !"#???????????? | | ! + % @ /g %^ "#???????????? | | = + + BB[ % "#???????????? | | ## ## #############" [BB=! "#???????????? | | # ## ###?????????#" ""%"% "#???????????? | | " #?????????############???????????? | | = " #????????????????????????????????? | | " ####?????????????????????????????? | | " + #?????????????????????????????? | | ## ## #### #?????????????????????????????? | | [= ## ## ####+#######???????????????????????? | | = ^^ #???????????????????????? | | ^^ #???????????????????????? | | ^^ #???????????????????????? | | ##""""##++#####+### #???????????????????????? | | ## ## #???# #?# #???????????????????????? | | ######## #???# #?# #???????????????????????? | | #??????# #???# #?# #???????????????????????? | | #??????# #???# #?# #???????????????????????? | | #??????# #???# #?# #???????????????????????? | | ^^ #??????# ##### ### #???????????????????????? | | ^^ #??????# + #???????????????????????? | | #??????# + #???????????????????????? | | #??????############ #???????????????????????? | | #?????????????????# #???????????????????????? | | +# #?????????????????# #???????????????????????? | +----------------------------------------------------+ Best States ------------- Heat Dissipation 53 Energy Generation 14 Energy Capacity 280 Matter Stores 300 Matter Capacity 300 Sight Range 16 Terrain Scan Density 10 Armor Coverage 400 Evasion (%) 40 Recoil Reduction 4 Offensive Hacking 10 Item Schematics ----------------- Seismic Detector | -9/Materials | Scanalyzed Hacking Suite | -9/Materials | Scanalyzed Lgt. Treads | -9/Materials | Scanalyzed Imp. Treads | -9/Materials | Scanalyzed Datajack | -9/Materials | Scanalyzed Robot Schematics ------------------ M-13 Machinist | -10/Materials | Hacked Fabricated ------------ Nothing Alien Tech Used ----------------- None Achievements -------------- None Challenges ------------ None Game ------ Seed RocketSalvageProjector Manual? 0 Play Time 01:20:52 Cumulative 221.7 hours Start 2024.12.04 @ 08:13:14 End 2024.12.04 @ 09:40:48 Sessions 1 Manual Loads 0 Difficulty Rogue Special Mode None Game No. 104 Rogue 104 Adventurer 0 Explorer 0 Win Type - Total 3 Types 0/0/1/1/0/0/1/0/0 Lore% 63 Gallery% 75 Achievement% 58 Wizard Run 0 Options --------- Layout 0 ASCII 0 Keyboard 0 Movement Numpad Keybinds 1 Fullscreen 2 Font 18/X11 Map View 76x50 Zoom Use 0% Tactical HUD 1 Map Filters NONE Filters NONE Steam 1 RUN: 1d74c158-e556-4ba6-8c52-d938babd6aa4